bitfinex-derivatives/quotes_BTCF0:USTF0_20241104
["timestamp","ask_amount","ask_price","bid_price","bid_amount"]
[1730744304953,0.073829,67762.0,67761.0,0.12770434]
[1730744305765,0.073828,67762.0,67761.0,1.5]
[1730744306058,0.12770434,67763.0,67751.0,0.15428]
[1730744306258,0.795424,67766.0,67751.0,0.15428]
[1730744306259,0.434639,67752.0,67751.0,0.15428]
[1730744306656,0.434639,67752.0,67751.0,1.65428]
[1730744307257,0.073839,67752.0,67751.0,1.65828]
[1730744307458,0.3608,67760.0,67751.0,1.78998434]
[1730744307665,0.3608,67760.0,67756.0,0.12770434]
[1730744307850,0.3608,67760.0,67759.0,0.073831]
[1730744308161,0.3608,67773.0,67759.0,0.12770434]
[1730744308348,0.3608,67773.0,67769.0,0.12770434]
[1730744308349,0.073818,67771.0,67769.0,0.12770434]
[1730744309849,0.073819,67770.0,67769.0,0.001]
[1730744310466,0.073819,67770.0,67759.0,0.12770434]
[1730744310467,0.3618,67773.0,67759.0,0.12770434]
[1730744310656,0.07383,67760.0,67759.0,0.28198434]
[1730744310856,0.07383,67760.0,67759.0,0.15428]
[1730744311057,0.43463,67760.0,67759.0,0.15428]
[1730744312958,0.43463,67760.0,67759.0,0.004]
[1730744313364,0.07383,67760.0,67759.0,0.004]
[1730744313956,0.07383,67760.0,67759.0,0.008]
[1730744314755,0.07383,67760.0,67759.0,0.004]
[1730744315068,0.073827,67763.0,67759.0,0.006]
[1730744315269,0.073827,67763.0,67762.0,0.12770434]
[1730744316358,0.073822,67767.0,67762.0,0.12770434]
[1730744316558,0.073822,67767.0,67763.0,0.0858]
[1730744316756,0.073822,67767.0,67764.0,0.08619432]
[1730744316960,0.073822,67767.0,67763.0,0.241927]
[1730744317163,0.073822,67767.0,67764.0,0.08619103]
[1730744317361,0.073822,67767.0,67765.0,0.08617042]
[1730744317566,0.074822,67767.0,67763.0,0.241927]
[1730744317761,0.073823,67766.0,67764.0,0.08613029]
[1730744317958,0.073823,67766.0,67765.0,0.08613029]
[1730744318171,0.001,67767.0,67763.0,0.1681]
[1730744318373,0.434626,67764.0,67763.0,0.1681]
[1730744318583,0.434626,67764.0,67763.0,0.08637598]
[1730744318776,0.434626,67764.0,67758.0,0.08841319]
[1730744318777,0.073831,67759.0,67758.0,0.08841319]
[1730744318968,0.073831,67759.0,67758.0,0.08650711]
[1730744320275,0.073831,67759.0,67758.0,0.005]
[1730744321177,0.073831,67759.0,67758.0,0.008]
[1730744321374,0.073831,67759.0,67758.0,0.0937249]
[1730744322667,0.07383,67761.0,67758.0,0.0907249]
[1730744322976,0.07383,67761.0,67759.0,0.0867249]
[1730744323173,0.07383,67761.0,67760.0,0.0867249]
[1730744323483,0.07383,67761.0,67760.0,0.17513809]
[1730744323667,0.07383,67761.0,67760.0,0.08841319]
[1730744323870,0.073829,67761.0,67760.0,0.08657242]
[1730744324581,0.36301396,67774.0,67760.0,0.30268995]
[1730744324885,0.073823,67766.0,67762.0,0.16224119]
[1730744325175,0.073823,67767.0,67765.0,0.21611753]
[1730744325380,0.073823,67767.0,67766.0,0.17498561]
[1730744325777,0.073823,67767.0,67766.0,0.08657242]
[1730744326281,0.073823,67767.0,67766.0,0.17498561]
[1730744326576,0.073823,67767.0,67766.0,0.08657242]
[1730744327076,0.077823,67767.0,67766.0,0.17485294]
[1730744327382,0.077823,67767.0,67766.0,0.08657242]
[1730744327578,0.004,67767.0,67766.0,0.08657242]
[1730744328372,0.004,67767.0,67766.0,0.16039542]
[1730744328784,0.004,67767.0,67766.0,0.2631641]
[1730744329286,0.00221396,67774.0,67766.0,0.7058441]
[1730744329491,0.0103,67786.0,67781.0,0.073806]
[1730744329673,0.3608,67791.0,67781.0,0.073806]
[1730744329674,0.3608,67791.0,67782.0,0.17174365]
[1730744329978,0.00104001,67787.0,67786.0,0.12770434]
[1730744330175,0.00104001,67787.0,67786.0,0.20150634]
[1730744330378,0.3608,67791.0,67786.0,0.20150634]
[1730744330583,0.3608,67791.0,67790.0,0.073797]
[1730744331180,0.3608,67791.0,67790.0,1.573797]
[1730744332480,0.00221323,67800.0,67790.0,1.8618]
[1730744332683,0.00221323,67800.0,67799.0,0.12770434]
[1730744333684,0.07599923,67800.0,67799.0,0.12770434]
[1730744334081,0.08099923,67800.0,67799.0,0.12770434]
[1730744335087,0.08099923,67800.0,67799.0,0.12870434]
[1730744336092,0.07599923,67800.0,67799.0,0.12870434]
[1730744336283,0.08199923,67800.0,67799.0,0.12970434]
[1730744337790,0.00821323,67800.0,67799.0,0.20349134]
[1730744337985,0.079786,67800.0,67799.0,0.12970434]
[1730744338181,0.079786,67800.0,67799.0,0.002]
[1730744338387,0.079786,67800.0,67799.0,0.01399925]
[1730744338587,0.079786,67800.0,67799.0,0.002]
[1730744338991,0.073786,67800.0,67799.0,0.001]
[1730744339289,0.080786,67800.0,67799.0,0.002]
[1730744339492,0.441586,67800.0,67799.0,0.002]
[1730744339884,0.434586,67800.0,67799.0,0.001]
[1730744340079,0.441586,67800.0,67799.0,0.002]
[1730744340285,0.45356597,67800.0,67799.0,0.002]
[1730744340783,1.02375031,67800.0,67799.0,0.002]
[1730744341196,0.58127031,67800.0,67799.0,0.002]
[1730744341391,0.441586,67800.0,67799.0,0.002]
[1730744341582,0.080786,67800.0,67799.0,0.075787]
[1730744341780,0.007,67800.0,67799.0,0.075787]
[1730744343598,0.007,67800.0,67799.0,0.64597134]
[1730744343791,0.007,67800.0,67799.0,0.77567418]
[1730744344094,0.007,67800.0,67799.0,2.27567418]
[1730744345089,0.007,67800.0,67799.0,2.27467418]
[1730744348000,0.007,67800.0,67799.0,2.63547418]
[1730744348194,0.36301241,67814.0,67799.0,2.98387137]
[1730744348395,0.36301241,67814.0,67813.0,0.12770434]
[1730744348396,0.43678341,67814.0,67813.0,0.12770434]
[1730744349193,0.00221241,67814.0,67813.0,0.20147634]
[1730744349394,0.01021241,67814.0,67813.0,0.20147634]
[1730744349597,0.01021241,67814.0,67813.0,0.20247634]
[1730744349791,0.01021241,67814.0,67813.0,0.12870434]
[1730744349792,0.08398341,67814.0,67813.0,0.12870434]
[1730744350097,0.081771,67814.0,67813.0,1.51274748]
[1730744350505,0.081771,67814.0,67813.0,1.71322382]
[1730744350506,0.008,67814.0,67813.0,1.71322382]
[1730744350694,0.008,67814.0,67813.0,2.07502382]
[1730744350999,0.073766,67819.0,67813.0,2.00225182]
[1730744351793,0.0803,67823.0,67815.0,0.07377]
[1730744351989,0.073767,67818.0,67815.0,0.07377]
[1730744352697,0.0803,67823.0,67815.0,0.07377]
[1730744352698,0.073768,67817.0,67815.0,0.07377]
[1730744353301,0.073768,67817.0,67815.0,0.07477]
[1730744353487,0.073765,67820.0,67815.0,0.001]
[1730744353688,0.073765,67820.0,67817.0,0.073767]
[1730744353895,0.0803,67823.0,67815.0,0.001]
[1730744354188,0.073767,67819.0,67815.0,0.002]
[1730744354391,0.0803,67823.0,67815.0,0.3628]
[1730744354392,0.154062,67823.0,67815.0,0.3628]
[1730744354596,0.073757,67827.0,67818.0,0.12770434]
[1730744354794,0.073757,67827.0,67817.0,0.3608]
[1730744354795,0.00221203,67828.0,67825.0,0.20146234]
[1730744354999,0.07596803,67828.0,67826.0,0.1588]
[1730744355297,0.07596803,67828.0,67826.0,0.232558]
[1730744355493,0.00221203,67828.0,67826.0,0.1588]
[1730744355700,0.00221203,67828.0,67827.0,0.073757]
[1730744357593,0.00221203,67828.0,67827.0,0.08573083]
[1730744359307,0.00221203,67828.0,67827.0,0.44653083]
[1730744359603,0.07596803,67828.0,67827.0,0.37277383]
[1730744359996,0.073757,67827.0,67826.0,0.1588]
[1730744360196,0.33137994,67827.0,67826.0,0.1588]
[1730744360798,0.33137994,67827.0,67826.0,0.17103196]
[1730744361007,0.33137994,67827.0,67826.0,0.06026711]
[1730744363001,0.25762294,67827.0,67826.0,0.06026711]
[1730744363506,0.25762294,67827.0,67826.0,0.17099196]
[1730744364798,0.2515622,67827.0,67826.0,0.17099196]
[1730744365204,0.33137994,67827.0,67826.0,0.17099196]
[1730744366207,0.25762294,67827.0,67826.0,0.24474996]
[1730744366395,0.1778052,67827.0,67826.0,0.60554996]
[1730744367296,0.1778052,67827.0,67826.0,2.03179196]
[1730744367297,0.16687861,67827.0,67826.0,2.03179196]
[1730744367608,0.16687861,67827.0,67826.0,2.10554996]
[1730744367795,0.16087491,67829.0,67828.0,0.073756]
[1730744368000,0.3608,67832.0,67831.0,0.073753]
[1730744368204,0.3608,67832.0,67831.0,0.20145734]
[1730744368509,0.3608,67832.0,67831.0,1.70145734]
[1730744370604,0.3608,67832.0,67831.0,1.70245734]
[1730744370907,0.3608,67832.0,67831.0,1.70345734]
[1730744371209,0.3608,67832.0,67831.0,1.76218586]
[1730744372112,0.3608,67832.0,67831.0,1.70345734]
[1730744373005,0.073747,67836.0,67831.0,1.62970434]
[1730744373214,0.3608,67837.0,67834.0,0.05876058]
[1730744373420,0.3608,67837.0,67836.0,0.12770434]
[1730744374405,0.073744,67839.0,67836.0,0.18646492]
[1730744374608,0.073744,67839.0,67837.0,0.13250658]
[1730744374908,0.073744,67839.0,67838.0,0.0734749]
[1730744375305,0.073744,67839.0,67838.0,0.16074478]
[1730744375613,0.073744,67839.0,67838.0,0.0734749]
[1730744375809,0.3608,67844.0,67838.0,0.0734749]
[1730744376004,0.434539,67844.0,67843.0,0.18647732]
[1730744376504,0.434539,67844.0,67843.0,0.12770434]
[1730744377306,0.434539,67844.0,67843.0,0.12870434]
[1730744378108,0.434539,67844.0,67843.0,0.12970434]
[1730744378640,0.434539,67844.0,67843.0,0.002]
[1730744382118,0.434539,67844.0,67843.0,0.07574]
[1730744382614,0.434539,67844.0,67843.0,0.16302778]
[1730744382615,0.3608,67844.0,67843.0,0.16302778]
[1730744383007,0.3608,67844.0,67843.0,0.07574]
[1730744383706,0.07594541,67848.0,67843.0,0.002]
[1730744383908,0.07594541,67848.0,67847.0,0.12770434]
[1730744385213,0.07594541,67848.0,67847.0,0.12870434]
[1730744386417,0.07594541,67848.0,67847.0,0.12970434]
[1730744386616,0.00221141,67848.0,67847.0,0.12970434]
[1730744386819,0.00221141,67848.0,67847.0,0.20343934]
[1730744388722,0.073734,67848.0,67847.0,0.12970434]
[1730744390007,0.073734,67848.0,67847.0,0.21655926]
[1730744390411,0.073734,67848.0,67847.0,0.32009538]
[1730744390612,0.073734,67848.0,67847.0,0.08785492]
[1730744390813,0.073734,67848.0,67847.0,0.08885492]
[1730744391419,0.515894,67848.0,67847.0,0.08885492]
[1730744391616,0.600394,67848.0,67847.0,0.16287952]
[1730744392213,0.600394,67848.0,67847.0,0.08929869]
[1730744392521,0.600394,67848.0,67847.0,0.16289131]
[1730744392719,0.600394,67848.0,67847.0,0.07559262]
[1730744392920,0.600394,67848.0,67847.0,0.16299946]
[1730744393126,0.600394,67848.0,67847.0,0.08940684]
[1730744394122,0.61217594,67848.0,67847.0,0.08940684]
[1730744394828,0.61217594,67848.0,67847.0,0.002]
[1730744399125,0.073753,67831.0,67828.0,0.28359066]
[1730744399325,0.073755,67829.0,67828.0,0.224676]
[1730744400421,0.3608,67838.0,67828.0,0.16279597]
[1730744400725,0.073751,67836.0,67835.0,0.073746]
[1730744402129,0.073751,67836.0,67829.0,0.05891466]
[1730744402130,0.07375,67833.0,67832.0,0.073751]
[1730744404124,0.07675,67833.0,67832.0,0.073751]
[1730744405121,0.003,67833.0,67832.0,0.36942572]
[1730744406032,0.003,67833.0,67832.0,0.49084806]
[1730744406222,0.07675,67833.0,67832.0,0.31398635]
[1730744406526,0.07675,67833.0,67832.0,0.19255796]
[1730744406919,0.07675,67833.0,67832.0,0.19284717]
[1730744407124,0.07675,67833.0,67832.0,0.08784732]
[1730744407426,0.44528,67833.0,67831.0,0.07359576]
[1730744407627,0.876832,67832.0,67831.0,0.07359576]
[1730744407836,0.876832,67832.0,67823.0,1.50076]
[1730744407837,0.876832,67832.0,67830.0,0.07359576]
[1730744408128,0.434552,67832.0,67831.0,0.16177759]
[1730744408317,0.073753,67831.0,67830.0,0.07359576]
[1730744408520,0.073753,67831.0,67830.0,0.08817568]
[1730744408723,0.516033,67831.0,67830.0,0.1617477]
[1730744409124,0.073753,67831.0,67830.0,0.1617477]
[1730744409321,0.073753,67831.0,67830.0,0.08812045]
[1730744409517,0.073753,67831.0,67830.0,0.25020766]
[1730744409728,0.074753,67831.0,67830.0,0.25120766]
[1730744409933,0.074753,67831.0,67830.0,0.24187445]
[1730744410125,0.074753,67831.0,67830.0,0.40897445]
[1730744410434,0.074753,67831.0,67830.0,0.49722402]
[1730744410627,0.075753,67831.0,67830.0,0.49822402]
[1730744410928,0.075753,67831.0,67830.0,0.40997445]
[1730744411128,0.002,67831.0,67830.0,0.40997445]
[1730744411332,0.002,67831.0,67830.0,0.51481454]
[1730744412326,0.075753,67831.0,67830.0,0.51481454]
[1730744412834,0.075753,67831.0,67830.0,0.51281454]
[1730744412835,0.074753,67831.0,67830.0,0.51281454]
[1730744413027,0.075753,67831.0,67830.0,0.51281454]
[1730744413735,0.075753,67831.0,67830.0,0.40797445]
[1730744414628,0.075753,67831.0,67830.0,0.42326251]
[1730744415226,0.075753,67831.0,67830.0,0.34950851]
[1730744415727,0.075753,67831.0,67830.0,0.45405398]
[1730744416427,0.075753,67831.0,67830.0,0.45367555]
[1730744417229,0.075753,67831.0,67830.0,0.52742955]
[1730744417821,0.002,67831.0,67830.0,0.52742955]
[1730744418034,0.002,67831.0,67830.0,0.63047485]
[1730744418725,0.002,67831.0,67830.0,0.52742955]
[1730744419135,0.002,67831.0,67830.0,0.64891402]
[1730744419341,0.3711,67844.0,67834.0,0.12770434]
[1730744419531,0.073735,67848.0,67844.0,0.073737]
[1730744419834,0.073735,67848.0,67846.0,0.073736]
[1730744420041,0.073735,67848.0,67846.0,0.20144034]
[1730744420236,0.073731,67851.0,67846.0,0.20144034]
[1730744420429,0.3608,67858.0,67846.0,1.70144034]
[1730744420625,0.3608,67858.0,67856.0,0.073725]
[1730744421447,0.3608,67858.0,67857.0,0.20142834]
[1730744423243,0.3608,67858.0,67857.0,0.20242834]
[1730744423448,0.073715,67866.0,67860.0,0.07372]
[1730744423647,0.073715,67866.0,67861.0,0.0853]
[1730744423939,0.073715,67866.0,67862.0,0.12770434]
[1730744424141,0.3608,67868.0,67862.0,0.12770434]
[1730744424335,0.07371,67871.0,67867.0,0.12770434]
[1730744424536,0.3608,67876.0,67862.0,0.12770434]
[1730744424537,0.3608,67870.0,67862.0,0.12770434]
[1730744424743,0.073717,67865.0,67862.0,0.12770434]
[1730744426042,0.434518,67863.0,67861.0,0.18670354]
[1730744426246,0.073719,67862.0,67861.0,0.18670354]
[1730744426444,0.073719,67862.0,67861.0,0.18570354]
[1730744429149,0.073719,67862.0,67861.0,0.10040354]
[1730744429349,0.073719,67862.0,67861.0,0.01500354]
[1730744429546,0.3608,67864.0,67857.0,0.20142834]
[1730744429744,0.073721,67861.0,67858.0,0.073723]
[1730744430247,0.3608,67864.0,67858.0,0.073723]
[1730744430443,0.073721,67860.0,67858.0,0.073723]
[1730744433046,0.073721,67860.0,67858.0,0.075723]
[1730744433346,0.073721,67860.0,67859.0,0.14388]
[1730744435648,0.073721,67860.0,67859.0,0.001]
[1730744435952,0.247932,67860.0,67859.0,0.001]
[1730744436154,0.12022766,67860.0,67859.0,0.001]
[1730744436457,0.48102766,67860.0,67859.0,0.001]
[1730744436654,0.48102766,67860.0,67850.0,0.14388]
[1730744436655,0.073731,67851.0,67850.0,0.14388]
[1730744436952,0.48058023,67851.0,67850.0,0.217612]
[1730744437154,0.434531,67851.0,67850.0,0.217612]
[1730744437347,0.434531,67851.0,67850.0,0.23252448]
[1730744437742,0.073731,67851.0,67850.0,0.24152448]
[1730744438144,0.073731,67851.0,67850.0,0.15288]
[1730744438744,0.073731,67851.0,67850.0,0.226612]
[1730744439442,0.073731,67851.0,67850.0,0.235612]
[1730744440654,0.11987481,67851.0,67850.0,0.235612]
[1730744442055,0.073729,67853.0,67850.0,0.24940368]
[1730744442259,0.073729,67853.0,67852.0,0.07373]
[1730744442650,0.073729,67853.0,67852.0,1.57373]
[1730744443453,0.073729,67853.0,67852.0,1.58073]
[1730744443648,0.073729,67853.0,67852.0,1.507]
[1730744443847,0.073729,67853.0,67852.0,0.007]
[1730744444053,0.073729,67853.0,67852.0,0.06573195]
[1730744444250,0.073729,67853.0,67852.0,0.0657472]
[1730744444453,0.073729,67853.0,67852.0,0.014]
[1730744445350,0.073729,67853.0,67852.0,0.08773]
[1730744445546,0.073729,67853.0,67852.0,0.16110059]
[1730744445753,0.073729,67853.0,67852.0,0.08773]
[1730744445954,0.073729,67853.0,67852.0,0.24887348]
[1730744446174,0.073729,67853.0,67852.0,0.16110059]
[1730744446360,0.073729,67853.0,67852.0,0.17547146]
[1730744446762,0.073729,67853.0,67852.0,0.24895358]
[1730744447358,0.073729,67853.0,67852.0,0.17547146]
[1730744447752,0.073729,67853.0,67852.0,0.10174146]
[1730744447955,0.073729,67853.0,67852.0,0.08751546]
[1730744448147,0.073729,67853.0,67852.0,0.014]
[1730744448456,0.073729,67853.0,67852.0,0.08751546]
[1730744448649,0.073729,67853.0,67852.0,0.10196846]
[1730744448856,0.073729,67853.0,67852.0,0.1755136]
[1730744449357,0.073729,67853.0,67852.0,0.10196846]
[1730744449958,0.001,67854.0,67853.0,0.073729]
[1730744450160,0.073722,67860.0,67859.0,0.073722]
[1730744450360,0.12053003,67860.0,67859.0,0.073722]
[1730744450562,0.17487635,67860.0,67859.0,0.073722]
[1730744452159,0.073728,67855.0,67854.0,0.217605]
[1730744452363,0.17488235,67855.0,67854.0,0.217605]
[1730744452759,0.18939723,67855.0,67854.0,0.217605]
[1730744452960,0.17439399,67855.0,67854.0,0.217605]
[1730744453264,0.59665691,67855.0,67854.0,0.217605]
[1730744453468,0.52292891,67855.0,67850.0,1.574612]
[1730744453680,0.07373,67852.0,67851.0,0.217611]
[1730744453866,0.23558518,67852.0,67851.0,0.14388]
[1730744454161,0.23558518,67852.0,67844.0,0.0835]
[1730744454162,0.073733,67849.0,67848.0,0.217611]
[1730744454461,0.073733,67849.0,67848.0,1.717611]
[1730744454669,0.073733,67849.0,67848.0,0.073731]
[1730744454867,0.59598937,67849.0,67843.0,0.01476741]
[1730744455068,0.07374,67843.0,67842.0,0.07594995]
[1730744455261,0.43454,67843.0,67842.0,0.00221095]
[1730744455455,0.53520599,67843.0,67842.0,0.00221095]
[1730744455667,0.59562436,67843.0,67842.0,0.07595195]
[1730744455969,0.53520599,67843.0,67842.0,0.07595195]
[1730744456271,0.53520599,67843.0,67842.0,0.00221095]
[1730744456565,0.53520599,67843.0,67842.0,0.07595195]
[1730744457159,0.43454,67843.0,67842.0,0.16427993]
[1730744457460,0.43454,67843.0,67842.0,0.17827993]
[1730744457778,0.43454,67843.0,67842.0,0.18427993]
[1730744458272,0.43454,67843.0,67842.0,0.17627993]
[1730744458661,0.43454,67843.0,67842.0,0.26453497]
[1730744459272,0.3608,67843.0,67842.0,0.28140345]
[1730744459673,0.3608,67843.0,67842.0,0.36730345]
[1730744460969,0.3608,67843.0,67842.0,0.36701055]
[1730744461368,0.3608,67849.0,67848.0,0.073734]
[1730744461674,0.073732,67850.0,67849.0,0.073733]
[1730744461858,0.073732,67850.0,67849.0,0.34961412]
[1730744462259,0.434532,67850.0,67849.0,0.27588112]
[1730744462669,0.434532,67850.0,67849.0,0.17112134]
[1730744463261,0.434532,67850.0,67849.0,0.08812134]
[1730744463566,0.876692,67850.0,67849.0,0.08812134]
[1730744463773,0.073733,67849.0,67848.0,0.07357785]
[1730744464070,0.073734,67848.0,67847.0,0.07357785]
[1730744464276,0.434534,67848.0,67847.0,0.07357785]
[1730744464574,0.07374,67843.0,67842.0,0.07579066]
[1730744464775,0.56224434,67843.0,67842.0,0.00221095]
[1730744465470,1.00444434,67843.0,67842.0,0.00221095]
[1730744466275,1.00444434,67843.0,67842.0,0.08179066]
[1730744466461,0.43454,67843.0,67842.0,0.09660871]
[1730744466975,0.43454,67843.0,67842.0,0.17034971]
[1730744467178,0.43454,67843.0,67842.0,0.17634971]
[1730744467376,0.07374,67843.0,67842.0,0.17634971]
[1730744467572,0.07374,67843.0,67842.0,0.26461426]
[1730744468167,0.07374,67843.0,67842.0,0.17634971]
[1730744468484,0.07374,67843.0,67842.0,0.2646093]
[1730744468664,0.07374,67843.0,67842.0,0.17634971]
[1730744468867,0.435415,67848.0,67847.0,0.073735]
[1730744468868,0.36168,67848.0,67847.0,0.073735]
[1730744469069,0.36168,67848.0,67847.0,0.39476761]
[1730744469070,0.3608,67848.0,67847.0,0.39476761]
[1730744469372,0.3608,67848.0,67847.0,1.70143934]
[1730744469569,0.3608,67848.0,67847.0,1.89361097]
[1730744469773,0.073727,67855.0,67847.0,1.89361097]
[1730744470074,0.073727,67855.0,67854.0,0.16197409]
[1730744470278,0.073727,67855.0,67854.0,0.16139907]
[1730744470473,0.073727,67855.0,67854.0,0.24964516]
[1730744470872,0.073727,67855.0,67854.0,0.16139907]
[1730744471875,0.36156,67866.0,67854.0,0.33569109]
[1730744472077,0.36156,67866.0,67861.0,0.08823378]
[1730744472078,0.3608,67866.0,67861.0,0.08823378]
[1730744472275,0.3608,67866.0,67864.0,0.073717]
[1730744472276,0.17293686,67865.0,67864.0,0.073717]
[1730744473676,0.12062933,67865.0,67864.0,0.074717]
[1730744473876,0.11952412,67865.0,67864.0,0.074717]
[1730744474078,0.11952412,67865.0,67864.0,0.001]
[1730744474276,0.04480812,67865.0,67862.0,0.0816]
[1730744474479,0.074716,67865.0,67864.0,0.002]
[1730744474685,0.11957484,67865.0,67864.0,0.002]
[1730744475479,0.11957484,67865.0,67864.0,0.001]
[1730744475879,0.11957484,67865.0,67864.0,0.073717]
[1730744476190,0.073718,67863.0,67862.0,0.001]
[1730744476379,0.11857684,67863.0,67862.0,0.001]
[1730744476684,0.17043421,67863.0,67862.0,0.001]
[1730744476895,0.25433421,67863.0,67862.0,0.001]
[1730744477186,0.073727,67855.0,67854.0,0.073727]
[1730744477383,0.434527,67855.0,67854.0,0.073727]
[1730744478687,0.434527,67855.0,67854.0,0.074727]
[1730744479085,0.434527,67855.0,67854.0,0.075727]
[1730744479779,0.434527,67855.0,67854.0,0.074727]
[1730744479976,0.073728,67854.0,67851.0,0.01507531]
[1730744480286,0.073729,67853.0,67852.0,0.16293549]
[1730744481990,0.073729,67853.0,67852.0,0.08920549]
[1730744483185,0.3608,67855.0,67854.0,0.073728]
[1730744483382,0.3608,67855.0,67854.0,0.16293349]
[1730744483582,0.3608,67855.0,67854.0,0.25116727]
[1730744483980,0.37618954,67863.0,67856.0,0.073723]
[1730744483981,0.434525,67857.0,67856.0,0.073723]
[1730744484183,0.073725,67857.0,67856.0,0.25111323]
[1730744484382,0.073725,67857.0,67856.0,0.16292849]
[1730744484684,0.073725,67857.0,67856.0,0.25110658]
[1730744485084,0.073725,67857.0,67856.0,0.25210658]
[1730744485693,0.073725,67857.0,67856.0,0.16392849]
[1730744486479,0.073725,67857.0,67856.0,0.16292849]
[1730744486687,0.073721,67860.0,67856.0,0.08920549]
[1730744486882,0.434519,67863.0,67862.0,0.073719]
[1730744487082,0.434519,67863.0,67862.0,0.23640974]
[1730744487381,0.434519,67863.0,67862.0,1.73640974]
[1730744487777,0.434519,67863.0,67862.0,0.23604701]
[1730744489086,0.3608,67863.0,67862.0,0.23604701]
[1730744489281,0.3608,67863.0,67862.0,0.2902661]
[1730744489487,0.3618,67863.0,67862.0,0.4340261]
[1730744489686,0.3618,67863.0,67862.0,0.53956208]
[1730744489879,0.001,67863.0,67862.0,0.41285774]
[1730744490287,0.074718,67863.0,67862.0,0.77365774]
[1730744490484,0.073709,67872.0,67869.0,0.07371]
[1730744490790,0.073709,67872.0,67871.0,0.073709]
[1730744490991,0.073709,67872.0,67871.0,0.16255176]
[1730744491381,0.00221069,67875.0,67871.0,0.08884276]
[1730744491586,0.00221069,67875.0,67874.0,0.52266238]
[1730744491791,0.073693,67886.0,67874.0,0.69778904]
[1730744491987,0.073693,67886.0,67885.0,0.073694]
[1730744494393,0.073693,67886.0,67885.0,0.075694]
[1730744494990,0.073693,67888.0,67887.0,0.073689]
[1730744495187,0.17337842,67888.0,67872.0,0.20960434]
[1730744495396,0.073696,67883.0,67882.0,0.073694]
[1730744495591,0.33450002,67883.0,67882.0,0.073694]
[1730744495997,0.39548596,67883.0,67882.0,0.073694]
[1730744496200,0.30649653,67883.0,67882.0,0.073694]
[1730744496401,0.23436736,67883.0,67882.0,0.073694]
[1730744496584,0.59516736,67883.0,67882.0,0.073694]
[1730744496986,0.82839253,67883.0,67882.0,0.001]
[1730744497195,0.667236,67883.0,67882.0,0.001]
[1730744497395,0.667236,67883.0,67882.0,0.00039011]
[1730744498494,0.668236,67883.0,67882.0,0.07508711]
[1730744498713,0.668236,67883.0,67876.0,0.0149335]
[1730744498904,0.073703,67878.0,67877.0,0.0737]
[1730744499201,0.23437436,67878.0,67877.0,0.0737]
[1730744499402,0.23437436,67878.0,67871.0,0.21947911]
[1730744499403,0.073708,67872.0,67871.0,0.21947911]
[1730744499702,0.23437936,67872.0,67871.0,0.21947911]
[1730744500104,0.306448,67872.0,67871.0,0.23434618]
[1730744500694,0.309448,67872.0,67871.0,0.21947911]
[1730744501998,0.311448,67872.0,67871.0,0.21947911]
[1730744502199,0.13226512,67872.0,67871.0,0.21947911]
[1730744502408,0.078708,67872.0,67871.0,0.21947911]
[1730744506707,0.078708,67872.0,67871.0,0.07591911]
[1730744507401,0.078708,67872.0,67871.0,0.00221011]
[1730744509113,0.078708,67872.0,67871.0,0.07591911]
[1730744510609,0.12369804,67872.0,67871.0,0.07591911]
[1730744510914,0.17593358,67872.0,67871.0,0.07591911]
[1730744511408,0.12369804,67872.0,67871.0,0.07591911]
[1730744512704,0.04999004,67872.0,67871.0,0.07591911]
[1730744517304,0.005,67872.0,67871.0,0.16415727]
[1730744518005,0.3608,67888.0,67871.0,0.16415727]
[1730744518212,0.3608,67888.0,67880.0,0.04414055]
[1730744518213,0.073698,67881.0,67880.0,0.04414055]
[1730744518415,0.073698,67881.0,67880.0,0.11783955]
[1730744518611,0.073698,67881.0,67880.0,0.073699]
[1730744519403,0.073693,67887.0,67886.0,0.073692]
[1730744520404,0.36364,67888.0,67885.0,0.12770434]
[1730744520405,0.437331,67888.0,67887.0,0.073692]
[1730744520613,0.3628,67888.0,67887.0,0.073692]
[1730744520909,0.3608,67888.0,67887.0,0.073692]
[1730744521110,0.434491,67888.0,67887.0,0.073692]
[1730744521907,0.434491,67888.0,67887.0,0.074692]
[1730744523017,0.434491,67888.0,67887.0,0.075692]
[1730744524415,0.434491,67888.0,67887.0,0.002]
[1730744526321,0.3608,67888.0,67887.0,0.002]
[1730744526507,0.37680976,67902.0,67895.0,0.073683]
[1730744526707,0.1,67900.0,67899.0,0.20138334]
[1730744528612,0.1,67900.0,67899.0,0.20238334]
[1730744529506,0.1,67900.0,67899.0,0.20338334]
[1730744530919,0.1,67900.0,67899.0,0.21839191]
[1730744531309,0.26259643,67900.0,67899.0,0.10044499]
[1730744532109,0.26259643,67900.0,67899.0,0.17412399]
[1730744532315,0.26259643,67900.0,67899.0,0.31744399]
[1730744533822,0.1,67900.0,67899.0,0.31744399]
[1730744536423,0.1,67900.0,67899.0,0.17412399]
[1730744536719,0.1,67900.0,67899.0,0.31744399]
[1730744538921,0.1,67900.0,67899.0,0.24376499]
[1730744539222,0.173678,67900.0,67899.0,0.31744399]
[1730744539433,0.1,67900.0,67899.0,0.31744399]
[1730744540124,0.00076,67906.0,67899.0,0.37146933]
[1730744540327,0.073661,67916.0,67905.0,0.12770434]
[1730744540527,0.44546,67918.0,67914.0,0.073663]
[1730744540528,0.157662,67915.0,67914.0,0.073663]
[1730744540922,0.32133846,67915.0,67914.0,0.073663]
[1730744541231,0.073664,67913.0,67911.0,0.073665]
[1730744541433,0.16367646,67912.0,67911.0,0.073666]
[1730744541731,0.16367646,67912.0,67911.0,0.20137034]
[1730744542527,0.23734146,67912.0,67911.0,0.20137034]
[1730744542728,0.23734146,67912.0,67911.0,0.20237034]
[1730744543231,0.23734146,67912.0,67911.0,0.34569034]
[1730744543922,0.23734146,67912.0,67911.0,0.34669034]
[1730744544425,0.23534987,67912.0,67911.0,0.34669034]
[1730744544731,0.16367646,67912.0,67911.0,0.34870759]
[1730744545325,0.16367646,67912.0,67911.0,0.27767413]
[1730744545926,0.23534987,67912.0,67911.0,0.27867413]
[1730744546127,0.16367646,67912.0,67911.0,0.27867413]